[Event "*** Titled Tuesday Blitz"]
[Site "Chess.com"]
[Date "2020.04.07"]
[Round "1"]
[White "lelya96"]
[Black "Faqade"]
[Result "0-1"]
[WhiteElo "2260"]
[BlackElo "2602"]
[TimeControl "180+1"]
[EndTime "13:08:37 PDT"]
[Termination "Faqade won by resignation"]

1. e4 {[%clk 0:03:00.6]} 1... c5 {[%clk 0:02:56.3]} 2. Nf3 {[%clk 0:03:00]} 2...
e6 {[%clk 0:02:55.3]} 3. d4 {[%clk 0:02:59.7]} 3... cxd4 {[%clk 0:02:56.2]} 4.
Nxd4 {[%clk 0:03:00.3]} 4... Nc6 {[%clk 0:02:56.7]} 5. Nb3 {[%clk 0:02:58.5]}
5... Nf6 {[%clk 0:02:56]} 6. Bd3 {[%clk 0:02:57.7]} 6... d5 {[%clk 0:02:55.8]}
7. N1d2 {[%clk 0:02:52.7]} 7... dxe4 {[%clk 0:02:52.9]} 8. Nxe4 {[%clk
0:02:51.7]} 8... Nxe4 {[%clk 0:02:51.7]} 9. Bxe4 {[%clk 0:02:51.7]} 9... Qxd1+
{[%clk 0:02:52]} 10. Kxd1 {[%clk 0:02:52.2]} 10... Bd7 {[%clk 0:02:52.5]} 11.
Be3 {[%clk 0:02:48.1]} 11... f5 {[%clk 0:02:50.1]} 12. Bxc6 {[%clk 0:02:32.4]}
12... Bxc6 {[%clk 0:02:49]} 13. f3 {[%clk 0:02:30.3]} 13... e5 {[%clk
0:02:43.5]} 14. Ke2 {[%clk 0:02:24.8]} 14... b6 {[%clk 0:02:36.2]} 15. c4 {[%clk
0:02:18.8]} 15... O-O-O {[%clk 0:02:33.8]} 16. Rhd1 {[%clk 0:02:17.2]} 16... Be7
{[%clk 0:02:32.9]} 17. Rxd8+ {[%clk 0:02:14.7]} 17... Rxd8 {[%clk 0:02:33.8]}
18. Rd1 {[%clk 0:02:14.3]} 18... Re8 {[%clk 0:02:32.9]} 19. Kf2 {[%clk
0:02:08.9]} 19... f4 {[%clk 0:02:22.4]} 20. Bd2 {[%clk 0:02:07.4]} 20... g5
{[%clk 0:02:10.9]} 21. Bc3 {[%clk 0:02:01.2]} 21... e4 {[%clk 0:02:09.5]} 22.
fxe4 {[%clk 0:01:58.8]} 22... Bxe4 {[%clk 0:02:10.4]} 23. Nd4 {[%clk 0:01:54.7]}
23... g4 {[%clk 0:01:36]} 24. Nb5 {[%clk 0:01:44.6]} 24... g3+ {[%clk
0:01:10.3]} 25. hxg3 {[%clk 0:01:18.9]} 25... fxg3+ {[%clk 0:01:11.2]} 26. Kxg3
{[%clk 0:01:18.9]} 26... Rg8+ {[%clk 0:01:10]} 27. Kf4 {[%clk 0:01:18.9]} 27...
Bxg2 {[%clk 0:01:10]} 28. Nd6+ {[%clk 0:01:17.8]} 28... Kb8 {[%clk 0:01:06.7]}
29. Be5 {[%clk 0:01:15.6]} 29... Ka8 {[%clk 0:01:00.2]} 30. Ke3 {[%clk
0:00:43.8]} 30... h5 {[%clk 0:00:48.6]} 31. Nf5 {[%clk 0:00:42.9]} 31... Bg5+
{[%clk 0:00:41.4]} 32. Kf2 {[%clk 0:00:37.2]} 32... Bh3 {[%clk 0:00:34.6]} 33.
Nd4 {[%clk 0:00:20.1]} 33... Bh4+ {[%clk 0:00:34.5]} 34. Ke3 {[%clk 0:00:19.6]}
34... Bg5+ {[%clk 0:00:30]} 35. Ke4 {[%clk 0:00:19.8]} 35... h4 {[%clk
0:00:26.6]} 36. Nf5 {[%clk 0:00:19.5]} 36... Bg2+ {[%clk 0:00:24.2]} 37. Kd4
{[%clk 0:00:18.8]} 37... h3 {[%clk 0:00:21.6]} 38. Kc3 {[%clk 0:00:18.4]} 38...
Re8 {[%clk 0:00:20]} 39. Bd6 {[%clk 0:00:18.3]} 39... Bf6+ {[%clk 0:00:19.8]}
40. Kb3 {[%clk 0:00:18]} 40... a6 {[%clk 0:00:17.3]} 41. Bh2 {[%clk 0:00:18.3]}
41... Rf8 {[%clk 0:00:14.9]} 42. Nd6 {[%clk 0:00:17.7]} 42... Be7 {[%clk
0:00:14.4]} 43. Kb4 {[%clk 0:00:15.7]} 43... Rd8 {[%clk 0:00:13.8]} 44. Rd3
{[%clk 0:00:15.8]} 44... Bf1 {[%clk 0:00:13.4]} 45. Rd4 {[%clk 0:00:16]} 45...
Bg2 {[%clk 0:00:13.8]} 46. Rd3 {[%clk 0:00:16.1]} 46... Rf8 {[%clk 0:00:13.6]}
47. Rd4 {[%clk 0:00:15.3]} 47... Rf2 {[%clk 0:00:13.9]} 48. c5 {[%clk
0:00:15.5]} 48... Rxb2+ {[%clk 0:00:13.1]} 49. Kc3 {[%clk 0:00:15.9]} 49... bxc5
{[%clk 0:00:13.6]} 50. Rg4 {[%clk 0:00:14]} 50... Bf6+ {[%clk 0:00:12.8]} 51.
Kc4 {[%clk 0:00:14.5]} 51... Bf1+ {[%clk 0:00:13.3]} 52. Kxc5 {[%clk 0:00:14.5]}
52... Rxh2 {[%clk 0:00:12.9]} 53. Rg8+ {[%clk 0:00:13.7]} 53... Ka7 {[%clk
0:00:13.4]} 54. Nc8+ {[%clk 0:00:10.7]} 54... Kb7 {[%clk 0:00:13.8]} 55. Nd6+
{[%clk 0:00:10.9]} 55... Kc7 {[%clk 0:00:14.3]} 56. Rc8+ {[%clk 0:00:10.8]}
56... Kd7 {[%clk 0:00:14.3]} 57. Rf8 {[%clk 0:00:10.8]} 57... Rc2+ {[%clk
0:00:13.9]} 58. Kd5 {[%clk 0:00:11.2]} 58... Bg2+ {[%clk 0:00:13.8]} 59. Ne4
{[%clk 0:00:09.1]} 59... Rd2+ {[%clk 0:00:13.7]} 60. Kc5 {[%clk 0:00:08.8]}
60... Be7+ {[%clk 0:00:12.2]} 0-1

[Event "*** Titled Tuesday Blitz"]
[Site "Chess.com"]
[Date "2020.04.07"]
[Round "1"]
[White "Msb2"]
[Black "malandragem"]
[Result "1-0"]
[WhiteElo "2927"]
[BlackElo "2472"]
[TimeControl "180+1"]
[EndTime "13:08:49 PDT"]
[Termination "Msb2 won by resignation"]

1. d4 {[%clk 0:03:00.9]} 1... Nf6 {[%clk 0:02:59.2]} 2. c4 {[%clk 0:03:01.5]}
2... g6 {[%clk 0:02:59.1]} 3. Nc3 {[%clk 0:03:02]} 3... d6 {[%clk 0:02:59.6]} 4.
e4 {[%clk 0:03:01.9]} 4... Bg7 {[%clk 0:03:00]} 5. h3 {[%clk 0:03:01.5]} 5...
O-O {[%clk 0:02:59.4]} 6. Be3 {[%clk 0:03:02.1]} 6... e5 {[%clk 0:02:56.8]} 7.
d5 {[%clk 0:03:02.6]} 7... a5 {[%clk 0:02:57.1]} 8. g4 {[%clk 0:03:02.5]} 8...
Nfd7 {[%clk 0:02:55.2]} 9. Qd2 {[%clk 0:03:02.2]} 9... Na6 {[%clk 0:02:45.6]}
10. Nge2 {[%clk 0:03:02.3]} 10... Nac5 {[%clk 0:02:33.3]} 11. Ng3 {[%clk
0:03:02.3]} 11... c6 {[%clk 0:02:28.3]} 12. Be2 {[%clk 0:03:01.1]} 12... cxd5
{[%clk 0:02:28.6]} 13. cxd5 {[%clk 0:02:59.3]} 13... a4 {[%clk 0:02:26.6]} 14.
h4 {[%clk 0:02:55.9]} 14... Qb6 {[%clk 0:02:24.2]} 15. h5 {[%clk 0:02:53.5]}
15... Rd8 {[%clk 0:02:21.8]} 16. Kf1 {[%clk 0:02:50.7]} 16... Qb4 {[%clk
0:02:16.7]} 17. f3 {[%clk 0:02:42.6]} 17... b6 {[%clk 0:02:16.9]} 18. Nb5 {[%clk
0:02:35.2]} 18... Qxd2 {[%clk 0:02:08.9]} 19. Bxd2 {[%clk 0:02:36.1]} 19... Nf6
{[%clk 0:01:54]} 20. Kg2 {[%clk 0:02:32.3]} 20... Ba6 {[%clk 0:01:54.2]} 21.
Rac1 {[%clk 0:02:27]} 21... Ne8 {[%clk 0:01:51.2]} 22. Be3 {[%clk 0:02:12.7]}
22... Bf8 {[%clk 0:01:48.7]} 23. Rc2 {[%clk 0:02:10]} 23... Rdc8 {[%clk
0:01:40.7]} 24. Rhc1 {[%clk 0:02:09.5]} 24... Be7 {[%clk 0:01:40.5]} 25. hxg6
{[%clk 0:01:51.3]} 25... hxg6 {[%clk 0:01:28.5]} 26. g5 {[%clk 0:01:45.7]} 26...
Kg7 {[%clk 0:01:27]} 27. Kf2 {[%clk 0:01:40.8]} 27... Nc7 {[%clk 0:01:18.4]} 28.
Nxc7 {[%clk 0:01:33.4]} 28... Rxc7 {[%clk 0:01:19.3]} 29. Bxa6 {[%clk
0:01:19.4]} 29... Rxa6 {[%clk 0:01:20.2]} 30. Ke2 {[%clk 0:01:19]} 30... Rb7
{[%clk 0:01:14.7]} 31. Rh1 {[%clk 0:01:11.4]} 31... Ra8 {[%clk 0:01:13.2]} 32.
Kd1 {[%clk 0:01:09.4]} 32... Rh8 {[%clk 0:01:11.9]} 33. Rxh8 {[%clk 0:01:09.2]}
33... Kxh8 {[%clk 0:01:12]} 34. Ke2 {[%clk 0:01:01.9]} 34... Kg7 {[%clk
0:01:11.4]} 35. Nf1 {[%clk 0:00:58.7]} 35... Rb8 {[%clk 0:01:03.4]} 36. Kd1
{[%clk 0:00:51.2]} 36... Rh8 {[%clk 0:00:58.3]} 37. Rh2 {[%clk 0:00:51.2]} 37...
Rh5 {[%clk 0:00:58.3]} 38. Ke2 {[%clk 0:00:36.3]} 38... Bd8 {[%clk 0:00:47.4]}
39. Rxh5 {[%clk 0:00:25.2]} 39... gxh5 {[%clk 0:00:46.6]} 40. Ng3 {[%clk
0:00:26.1]} 40... Kg6 {[%clk 0:00:46.6]} 41. Nf5 {[%clk 0:00:26.7]} 41... Bxg5
{[%clk 0:00:40.1]} 42. Bxg5 {[%clk 0:00:27.6]} 42... Kxg5 {[%clk 0:00:40.1]} 43.
Nxd6 {[%clk 0:00:28.5]} 43... f5 {[%clk 0:00:35.4]} 44. Nxf5 {[%clk 0:00:28.2]}
44... a3 {[%clk 0:00:32]} 45. bxa3 {[%clk 0:00:28.1]} 45... Na4 {[%clk
0:00:27.3]} 46. d6 {[%clk 0:00:24.9]} 46... Nc5 {[%clk 0:00:23.9]} 47. Kf2
{[%clk 0:00:24.9]} 47... Kf6 {[%clk 0:00:17.8]} 48. Kg3 {[%clk 0:00:25.3]} 48...
Kg5 {[%clk 0:00:15.4]} 49. Ne3 {[%clk 0:00:17.1]} 49... Nd7 {[%clk 0:00:13.8]}
50. Nd5 {[%clk 0:00:16.7]} 50... b5 {[%clk 0:00:12.3]} 51. Kh3 {[%clk
0:00:14.8]} 51... h4 {[%clk 0:00:10.5]} 52. Kg2 {[%clk 0:00:13.2]} 52... Kh5
{[%clk 0:00:07.4]} 53. Kh2 {[%clk 0:00:13.4]} 53... Kg5 {[%clk 0:00:07.8]} 54.
Kh3 {[%clk 0:00:13.8]} 54... Kh5 {[%clk 0:00:07.2]} 55. Nc3 {[%clk 0:00:12.6]}
55... Kg5 {[%clk 0:00:06.2]} 56. Nxb5 {[%clk 0:00:13]} 56... Kf4 {[%clk
0:00:06.7]} 57. a4 {[%clk 0:00:13.5]} 57... Kxf3 {[%clk 0:00:07.2]} 58. Nc3
{[%clk 0:00:13.1]} 58... Ke3 {[%clk 0:00:07.1]} 59. a5 {[%clk 0:00:13.6]} 59...
Kd4 {[%clk 0:00:07.3]} 60. a6 {[%clk 0:00:13.9]} 60... Kc5 {[%clk 0:00:05.2]}
61. a7 {[%clk 0:00:13.9]} 61... Nb6 {[%clk 0:00:04.9]} 62. d7 {[%clk 0:00:14.4]}
1-0

[Event "*** Titled Tuesday Blitz"]
[Site "Chess.com"]
[Date "2020.04.07"]
[Round "1"]
[White "Nancy11111"]
[Black "TheCount"]
[Result "1-0"]
[WhiteElo "2356"]
[BlackElo "2665"]
[TimeControl "180+1"]
[EndTime "13:08:49 PDT"]
[Termination "Nancy11111 won by checkmate"]

1. e4 {[%clk 0:03:00.9]} 1... e5 {[%clk 0:02:51.6]} 2. Nf3 {[%clk 0:02:55.6]}
2... Nc6 {[%clk 0:02:50.1]} 3. Bb5 {[%clk 0:02:54.3]} 3... a6 {[%clk 0:02:46.2]}
4. Ba4 {[%clk 0:02:53.5]} 4... Nf6 {[%clk 0:02:45.1]} 5. O-O {[%clk 0:02:52.5]}
5... Be7 {[%clk 0:02:36.6]} 6. Bxc6 {[%clk 0:02:42.8]} 6... dxc6 {[%clk
0:02:35.5]} 7. d3 {[%clk 0:02:42.7]} 7... Nd7 {[%clk 0:02:29.7]} 8. Be3 {[%clk
0:02:38.9]} 8... O-O {[%clk 0:02:27.5]} 9. Nbd2 {[%clk 0:02:37.2]} 9... Re8
{[%clk 0:02:26.7]} 10. Nc4 {[%clk 0:02:34.5]} 10... Bd6 {[%clk 0:02:25.3]} 11.
a4 {[%clk 0:02:29.6]} 11... a5 {[%clk 0:02:21.5]} 12. h3 {[%clk 0:02:25.9]}
12... c5 {[%clk 0:02:19]} 13. Bg5 {[%clk 0:02:13.6]} 13... f6 {[%clk 0:02:18.7]}
14. Bd2 {[%clk 0:02:09.1]} 14... b6 {[%clk 0:02:18.7]} 15. Re1 {[%clk
0:02:05.5]} 15... Nf8 {[%clk 0:02:16.3]} 16. Nh4 {[%clk 0:02:02.2]} 16... Ng6
{[%clk 0:02:08.3]} 17. Nxg6 {[%clk 0:01:54.6]} 17... hxg6 {[%clk 0:02:07.3]} 18.
b3 {[%clk 0:01:54.3]} 18... Be6 {[%clk 0:02:01.5]} 19. Qf3 {[%clk 0:01:49.4]}
19... Qd7 {[%clk 0:01:59.3]} 20. g4 {[%clk 0:01:45.2]} 20... Kf7 {[%clk
0:01:53.9]} 21. Bc3 {[%clk 0:01:41.7]} 21... Bxc4 {[%clk 0:01:34.4]} 22. dxc4
{[%clk 0:01:38.3]} 22... Rh8 {[%clk 0:01:34.1]} 23. Rad1 {[%clk 0:01:35.4]}
23... Qe6 {[%clk 0:01:34.1]} 24. Kg2 {[%clk 0:01:26.5]} 24... Rh4 {[%clk
0:01:33.7]} 25. Qd3 {[%clk 0:01:22.5]} 25... Rah8 {[%clk 0:01:33.1]} 26. Rh1
{[%clk 0:01:19.7]} 26... Ke7 {[%clk 0:01:18.7]} 27. f3 {[%clk 0:01:17.2]} 27...
f5 {[%clk 0:01:09.3]} 28. exf5 {[%clk 0:01:06.9]} 28... gxf5 {[%clk 0:01:10.2]}
29. Rde1 {[%clk 0:01:03]} 29... fxg4 {[%clk 0:01:03.1]} 30. fxg4 {[%clk
0:00:59.2]} 30... R4h6 {[%clk 0:00:42.2]} 31. Qe4 {[%clk 0:00:55.1]} 31... Kd7
{[%clk 0:00:35.4]} 32. Bxe5 {[%clk 0:00:52.9]} 32... Bxe5 {[%clk 0:00:34.2]} 33.
Qxe5 {[%clk 0:00:50.7]} 33... Qxe5 {[%clk 0:00:29.5]} 34. Rxe5 {[%clk
0:00:47.8]} 34... Rd6 {[%clk 0:00:30.4]} 35. Kg3 {[%clk 0:00:44.3]} 35... Rd2
{[%clk 0:00:26.4]} 36. Rh2 {[%clk 0:00:41.9]} 36... Rxh2 {[%clk 0:00:25.3]} 37.
Kxh2 {[%clk 0:00:42.8]} 37... Rf8 {[%clk 0:00:25.9]} 38. Kg3 {[%clk 0:00:37.2]}
38... Rf1 {[%clk 0:00:21.6]} 39. h4 {[%clk 0:00:35.2]} 39... Rc1 {[%clk
0:00:18.9]} 40. Rg5 {[%clk 0:00:21.5]} 40... Rxc2 {[%clk 0:00:18.8]} 41. Rxg7+
{[%clk 0:00:20.6]} 41... Ke6 {[%clk 0:00:19.7]} 42. h5 {[%clk 0:00:17.8]} 42...
Rc3+ {[%clk 0:00:18.4]} 43. Kh4 {[%clk 0:00:16.4]} 43... Rxb3 {[%clk 0:00:18.8]}
44. h6 {[%clk 0:00:15.7]} 44... Rb1 {[%clk 0:00:19.7]} 45. Kg5 {[%clk
0:00:13.1]} 45... Rh1 {[%clk 0:00:20.6]} 46. h7 {[%clk 0:00:10.1]} 46... Ke5
{[%clk 0:00:19]} 47. Rxc7 {[%clk 0:00:08.1]} 47... Kd4 {[%clk 0:00:18.4]} 48.
Kf6 {[%clk 0:00:06.4]} 48... Kxc4 {[%clk 0:00:18.6]} 49. Kg7 {[%clk 0:00:05.1]}
49... Rf1 {[%clk 0:00:19.5]} 50. h8=Q {[%clk 0:00:03.1]} 50... Rf4 {[%clk
0:00:20.4]} 51. Qg8+ {[%clk 0:00:02.7]} 51... Kb4 {[%clk 0:00:20.8]} 52. g5
{[%clk 0:00:03.6]} 52... Rg4 {[%clk 0:00:20.8]} 53. g6 {[%clk 0:00:04.5]} 53...
Rd4 {[%clk 0:00:20.7]} 54. Qf7 {[%clk 0:00:04.9]} 54... Rd6 {[%clk 0:00:20.2]}
55. Rd7 {[%clk 0:00:05.8]} 55... Rc6 {[%clk 0:00:20.3]} 56. Qf4+ {[%clk
0:00:04.9]} 56... c4 {[%clk 0:00:21.2]} 57. Qe4 {[%clk 0:00:05]} 57... Rc5
{[%clk 0:00:21.3]} 58. Rd1 {[%clk 0:00:04.3]} 58... Kxa4 {[%clk 0:00:20.7]} 59.
Ra1+ {[%clk 0:00:04.4]} 59... Kb5 {[%clk 0:00:21.1]} 60. Rb1+ {[%clk 0:00:04.8]}
60... Ka4 {[%clk 0:00:20.9]} 61. Rxb6 {[%clk 0:00:04]} 61... Rc7+ {[%clk
0:00:21.8]} 62. Kh6 {[%clk 0:00:01.8]} 62... Rc5 {[%clk 0:00:22.7]} 63. Rc6
{[%clk 0:00:01.6]} 63... Ka3 {[%clk 0:00:23.6]} 64. Rxc5 {[%clk 0:00:01.8]}
64... Kb4 {[%clk 0:00:24.5]} 65. Rxc4+ {[%clk 0:00:02.2]} 65... Kb3 {[%clk
0:00:24.8]} 66. g7 {[%clk 0:00:03.1]} 66... a4 {[%clk 0:00:24.9]} 67. g8=Q
{[%clk 0:00:04]} 67... a3 {[%clk 0:00:25.8]} 68. Qg3+ {[%clk 0:00:04.3]} 68...
Kb2 {[%clk 0:00:26.7]} 69. Qc2+ {[%clk 0:00:04.4]} 69... Ka1 {[%clk 0:00:25.7]}
70. Qg1# {[%clk 0:00:05.2]} 1-0

[Event "*** Titled Tuesday Blitz"]
[Site "Chess.com"]
[Date "2020.04.07"]
[Round "1"]
[White "Teidi96"]
[Black "enriquetejedor"]
[Result "1-0"]
[WhiteElo "2224"]
[BlackElo "2538"]
[TimeControl "180+1"]
[EndTime "13:08:51 PDT"]
[Termination "Teidi96 won by checkmate"]

1. e4 {[%clk 0:03:00.9]} 1... c5 {[%clk 0:02:54.9]} 2. Nf3 {[%clk 0:03:00.7]}
2... e6 {[%clk 0:02:40.4]} 3. d3 {[%clk 0:02:59.6]} 3... Nc6 {[%clk 0:02:31.1]}
4. g3 {[%clk 0:02:58.8]} 4... d5 {[%clk 0:02:23.3]} 5. Qe2 {[%clk 0:02:58.4]}
5... g6 {[%clk 0:02:21.8]} 6. Bg2 {[%clk 0:02:57.9]} 6... Nge7 {[%clk
0:02:21.7]} 7. O-O {[%clk 0:02:58]} 7... Bg7 {[%clk 0:02:14.9]} 8. c3 {[%clk
0:02:56.9]} 8... b6 {[%clk 0:02:11.1]} 9. Nbd2 {[%clk 0:02:50.4]} 9... O-O
{[%clk 0:02:06.3]} 10. e5 {[%clk 0:02:46.7]} 10... a5 {[%clk 0:02:01.1]} 11. d4
{[%clk 0:02:36.9]} 11... Ba6 {[%clk 0:02:00.1]} 12. c4 {[%clk 0:02:10.4]} 12...
cxd4 {[%clk 0:01:39.9]} 13. b3 {[%clk 0:02:09.3]} 13... Nf5 {[%clk 0:01:21.2]}
14. Re1 {[%clk 0:02:00]} 14... dxc4 {[%clk 0:01:09.6]} 15. Nxc4 {[%clk
0:01:55.2]} 15... d3 {[%clk 0:00:57.3]} 16. Qe4 {[%clk 0:01:49.7]} 16... Rc8
{[%clk 0:00:51.6]} 17. Bg5 {[%clk 0:01:47.4]} 17... Qd5 {[%clk 0:00:48.9]} 18.
Qxd5 {[%clk 0:01:32.6]} 18... exd5 {[%clk 0:00:48.6]} 19. Nxb6 {[%clk
0:01:33.2]} 19... Rce8 {[%clk 0:00:39.2]} 20. Nxd5 {[%clk 0:01:31.2]} 20... Nxe5
{[%clk 0:00:33.1]} 21. Nf6+ {[%clk 0:00:37.8]} 21... Bxf6 {[%clk 0:00:32.9]} 22.
Bxf6 {[%clk 0:00:38.7]} 22... Ng4 {[%clk 0:00:25.9]} 23. Bc3 {[%clk 0:00:31.7]}
23... a4 {[%clk 0:00:17.2]} 24. bxa4 {[%clk 0:00:27]} 24... Rxe1+ {[%clk
0:00:15.7]} 25. Rxe1 {[%clk 0:00:26.1]} 25... Rc8 {[%clk 0:00:16.1]} 26. Bd2
{[%clk 0:00:17.1]} 26... Rc2 {[%clk 0:00:09]} 27. h3 {[%clk 0:00:16.8]} 27...
Nf6 {[%clk 0:00:07.8]} 28. Rc1 {[%clk 0:00:16.5]} 28... Nd5 {[%clk 0:00:02.2]}
29. Rxc2 {[%clk 0:00:13.3]} 29... dxc2 {[%clk 0:00:03.1]} 30. Ne1 {[%clk
0:00:13.5]} 30... Nb6 {[%clk 0:00:02.1]} 31. Nxc2 {[%clk 0:00:12.9]} 31... Nxa4
{[%clk 0:00:02.4]} 32. Nb4 {[%clk 0:00:13.1]} 32... Nd6 {[%clk 0:00:02.1]} 33.
Nxa6 {[%clk 0:00:12.2]} 33... Nc4 {[%clk 0:00:02.5]} 34. Bb4 {[%clk 0:00:11.6]}
34... Kg7 {[%clk 0:00:01.7]} 35. a3 {[%clk 0:00:11.8]} 35... Ncb2 {[%clk
0:00:02]} 36. Nc5 {[%clk 0:00:11.2]} 36... Nxc5 {[%clk 0:00:01.5]} 37. Bxc5
{[%clk 0:00:11]} 37... Nc4 {[%clk 0:00:02.1]} 38. Bb4 {[%clk 0:00:10.9]} 38...
Kf6 {[%clk 0:00:02.2]} 39. Bd5 {[%clk 0:00:10.4]} 39... Nb6 {[%clk 0:00:02.6]}
40. Bb3 {[%clk 0:00:10.9]} 40... Kf5 {[%clk 0:00:02.1]} 41. Kf1 {[%clk
0:00:11.4]} 41... f6 {[%clk 0:00:02.6]} 42. Ke2 {[%clk 0:00:11.9]} 42... Ke5
{[%clk 0:00:03.1]} 43. a4 {[%clk 0:00:12.2]} 43... Nc8 {[%clk 0:00:02.8]} 44. a5
{[%clk 0:00:12.2]} 44... Na7 {[%clk 0:00:03.3]} 45. a6 {[%clk 0:00:12.1]} 45...
Nb5 {[%clk 0:00:02.3]} 46. Bc5 {[%clk 0:00:11.4]} 46... f5 {[%clk 0:00:01.7]}
47. a7 {[%clk 0:00:10.9]} 47... Nxa7 {[%clk 0:00:02]} 48. Bxa7 {[%clk
0:00:11.8]} 48... g5 {[%clk 0:00:02.6]} 49. Ke3 {[%clk 0:00:11.4]} 49... Kf6
{[%clk 0:00:02.4]} 50. f4 {[%clk 0:00:11]} 50... h6 {[%clk 0:00:02.2]} 51. fxg5+
{[%clk 0:00:10.8]} 51... hxg5 {[%clk 0:00:03.1]} 52. Kf3 {[%clk 0:00:10.9]}
52... Kg6 {[%clk 0:00:03.2]} 53. Bd4 {[%clk 0:00:10.5]} 53... Kh5 {[%clk
0:00:02.8]} 54. Bf7+ {[%clk 0:00:09.9]} 54... Kh6 {[%clk 0:00:03.2]} 55. Be6
{[%clk 0:00:10.2]} 55... Kg6 {[%clk 0:00:03.3]} 56. Be5 {[%clk 0:00:10.4]} 56...
g4+ {[%clk 0:00:02.4]} 57. hxg4 {[%clk 0:00:10]} 57... Kg5 {[%clk 0:00:02.3]}
58. gxf5 {[%clk 0:00:08.9]} 58... Kh6 {[%clk 0:00:03.2]} 59. Kg4 {[%clk
0:00:07.5]} 59... Kh7 {[%clk 0:00:03.4]} 60. f6 {[%clk 0:00:07.5]} 60... Kg6
{[%clk 0:00:03.6]} 61. f7 {[%clk 0:00:06.5]} 61... Kh7 {[%clk 0:00:04.2]} 62.
f8=Q {[%clk 0:00:06.2]} 62... Kg6 {[%clk 0:00:04.7]} 63. Qg7# {[%clk 0:00:06.3]}
1-0

[Event "*** Titled Tuesday Blitz"]
[Site "Chess.com"]
[Date "2020.04.07"]
[Round "1"]
[White "marianokar"]
[Black "Dyadya81"]
[Result "0-1"]
[WhiteElo "2379"]
[BlackElo "2727"]
[TimeControl "180+1"]
[EndTime "13:08:53 PDT"]
[Termination "Dyadya81 won by resignation"]

1. Nf3 {[%clk 0:03:00.9]} 1... d5 {[%clk 0:02:58.8]} 2. g3 {[%clk 0:02:58]} 2...
Nc6 {[%clk 0:02:58.6]} 3. c4 {[%clk 0:02:48.6]} 3... d4 {[%clk 0:02:57.9]} 4.
Bg2 {[%clk 0:02:44]} 4... e5 {[%clk 0:02:57.6]} 5. O-O {[%clk 0:02:39.3]} 5...
h5 {[%clk 0:02:48.7]} 6. h4 {[%clk 0:02:23.5]} 6... a5 {[%clk 0:02:41.6]} 7. d3
{[%clk 0:02:12.4]} 7... Bc5 {[%clk 0:02:35.2]} 8. Na3 {[%clk 0:02:00.4]} 8...
Nge7 {[%clk 0:02:31.3]} 9. Nc2 {[%clk 0:02:00.1]} 9... Bf5 {[%clk 0:02:23.9]}
10. Rb1 {[%clk 0:01:53.5]} 10... Qd7 {[%clk 0:02:21.6]} 11. b3 {[%clk
0:01:35.4]} 11... e4 {[%clk 0:02:09.8]} 12. dxe4 {[%clk 0:00:57.9]} 12... Bxe4
{[%clk 0:02:09]} 13. Ne5 {[%clk 0:00:58.3]} 13... Qf5 {[%clk 0:01:52.7]} 14.
Bxe4 {[%clk 0:00:57.3]} 14... Qxe4 {[%clk 0:01:53.6]} 15. Nd3 {[%clk 0:00:57.9]}
15... Bb6 {[%clk 0:01:39.5]} 16. a3 {[%clk 0:00:42.5]} 16... Qe6 {[%clk
0:01:08.9]} 17. c5 {[%clk 0:00:27.8]} 17... Ba7 {[%clk 0:01:08.9]} 18. b4 {[%clk
0:00:28.3]} 18... Nd5 {[%clk 0:01:03.9]} 19. Nf4 {[%clk 0:00:27.8]} 19... Nxf4
{[%clk 0:00:55.5]} 20. Bxf4 {[%clk 0:00:28.7]} 20... axb4 {[%clk 0:00:53.1]} 21.
axb4 {[%clk 0:00:27.7]} 21... Rd8 {[%clk 0:00:48.4]} 22. Bxc7 {[%clk 0:00:22.2]}
22... Rd7 {[%clk 0:00:48.3]} 23. Bd6 {[%clk 0:00:20.6]} 23... Rxd6 {[%clk
0:00:42.4]} 24. cxd6 {[%clk 0:00:20.2]} 24... Qxd6 {[%clk 0:00:43.3]} 25. Qd3
{[%clk 0:00:19.7]} 25... O-O {[%clk 0:00:40.9]} 26. Kg2 {[%clk 0:00:16.3]} 26...
Qd5+ {[%clk 0:00:32.9]} 27. Qf3 {[%clk 0:00:16.2]} 27... Qc4 {[%clk 0:00:32.8]}
28. Ne1 {[%clk 0:00:15.4]} 28... Qb5 {[%clk 0:00:20.1]} 29. Nd3 {[%clk
0:00:16.3]} 29... Re8 {[%clk 0:00:20.5]} 30. Rfc1 {[%clk 0:00:16.5]} 30... Bb8
{[%clk 0:00:20.2]} 31. Rc2 {[%clk 0:00:16.6]} 31... Bd6 {[%clk 0:00:16.8]} 32.
Nc5 {[%clk 0:00:16.5]} 32... Nxb4 {[%clk 0:00:15.2]} 33. Qxb7 {[%clk 0:00:11.8]}
33... Qxb7+ {[%clk 0:00:14.1]} 34. Nxb7 {[%clk 0:00:12.7]} 34... Nxc2 {[%clk
0:00:14.4]} 35. Nxd6 {[%clk 0:00:13.6]} 35... Rxe2 {[%clk 0:00:14.9]} 36. Rb8+
{[%clk 0:00:12.1]} 36... Kh7 {[%clk 0:00:15.3]} 37. Nxf7 {[%clk 0:00:13]} 37...
d3 {[%clk 0:00:12.1]} 38. Ng5+ {[%clk 0:00:13.9]} 38... Kg6 {[%clk 0:00:12.3]}
39. Rb6+ {[%clk 0:00:14.1]} 39... Kf5 {[%clk 0:00:12.7]} 40. Rb5+ {[%clk
0:00:13]} 40... Re5 {[%clk 0:00:10.1]} 41. Rxe5+ {[%clk 0:00:12.6]} 41... Kxe5
{[%clk 0:00:11]} 42. Nf3+ {[%clk 0:00:13.5]} 42... Kd5 {[%clk 0:00:10.8]} 43.
Nd2 {[%clk 0:00:13.6]} 43... Kd4 {[%clk 0:00:11.1]} 44. Kf3 {[%clk 0:00:13.9]}
44... Ne1+ {[%clk 0:00:10.5]} 45. Kf4 {[%clk 0:00:13.3]} 45... Kc3 {[%clk
0:00:10.6]} 46. Ne4+ {[%clk 0:00:13.8]} 46... Kc2 {[%clk 0:00:11]} 47. f3 {[%clk
0:00:14.4]} 47... Ng2+ {[%clk 0:00:10.7]} 48. Kf5 {[%clk 0:00:12.8]} 48... Ne3+
{[%clk 0:00:09.1]} 49. Kg5 {[%clk 0:00:12.6]} 49... Nd5 {[%clk 0:00:09]} 50.
Kxh5 {[%clk 0:00:12.1]} 50... Nf6+ {[%clk 0:00:09.2]} 51. Nxf6 {[%clk
0:00:10.6]} 51... gxf6 {[%clk 0:00:10.1]} 52. Kg6 {[%clk 0:00:11.4]} 52... d2
{[%clk 0:00:11]} 53. h5 {[%clk 0:00:12.3]} 53... d1=Q {[%clk 0:00:11.9]} 54. h6
{[%clk 0:00:13.2]} 54... Qxf3 {[%clk 0:00:12.3]} 55. h7 {[%clk 0:00:14.1]} 55...
Qxg3+ {[%clk 0:00:12.3]} 56. Kxf6 {[%clk 0:00:14.6]} 56... Qc3+ {[%clk
0:00:12.6]} 57. Kf7 {[%clk 0:00:14]} 57... Qh8 {[%clk 0:00:13]} 0-1